bitfinex-derivatives/quotes_ETHF0:USTF0_20250727
["timestamp","ask_amount","ask_price","bid_price","bid_amount"]
[1753658309342,2.45435,3849.6,3849.5,26.34734]
[1753658309734,3.29795,3849.6,3849.5,26.34734]
[1753658309935,3.29795,3849.6,3849.5,4.597]
[1753658310135,4.05375,3849.6,3849.5,25.825]
[1753658310444,4.05375,3849.6,3849.5,26.34437]
[1753658310946,4.05375,3849.6,3849.5,25.825]
[1753658311142,4.05375,3849.6,3849.5,26.34437]
[1753658311939,4.05375,3849.6,3849.5,25.825]
[1753658312341,4.05375,3849.6,3849.5,26.34437]
[1753658312540,4.05375,3849.6,3849.5,25.825]
[1753658313043,4.05375,3849.6,3849.5,26.34437]
[1753658313839,0.51935,3849.6,3849.5,26.34437]
[1753658314037,2.681,3851.1,3851.0,1.4545]
[1753658314241,5.73125387,3851.1,3851.0,23.0344]
[1753658314441,5.73125387,3851.1,3851.0,21.9726]
[1753658314646,5.73125387,3851.1,3851.0,0.7476]
[1753658314845,5.73125387,3851.1,3851.0,21.9726]
[1753658315047,5.21210387,3851.1,3851.0,23.04966]
[1753658315246,5.21210387,3851.1,3851.0,25.35486]
[1753658315545,5.73125387,3851.1,3851.0,24.8357]
[1753658315746,5.73125387,3851.1,3851.0,21.9726]
[1753658316847,3.32674432,3851.1,3851.0,24.8357]
[1753658317048,0.71574432,3851.1,3851.0,25.96586]
[1753658317237,1.48934432,3851.1,3851.0,25.96586]
[1753658317637,1.38051192,3851.6,3851.0,30.4467]
[1753658317844,1.38051192,3851.7,3851.6,4.74078]
[1753658318141,2.611,3851.7,3851.6,3.6107]
[1753658318447,1.8374,3851.2,3850.8,1.7687]
[1753658318647,5.01609,3850.8,3850.7,3.2078]
[1753658318945,3.17874,3850.4,3850.3,3.2078]
[1753658319451,3.17874,3850.4,3850.3,5.49576]
[1753658319647,1.29284,3850.4,3850.3,4.9765]
[1753658319848,1.29284,3850.4,3850.3,5.49576]
[1753658320151,0.7736,3850.4,3850.3,5.49576]
[1753658320343,0.7736,3850.4,3850.3,26.71576]
[1753658320949,1.29284,3850.4,3850.3,26.71576]
[1753658321150,2.13644,3850.4,3850.3,26.1965]
[1753658321351,3.17874,3850.4,3850.3,3.2078]
[1753658321650,4.45887742,3850.4,3850.3,3.2078]
[1753658321851,1.8859,3850.0,3849.4,1.0618]
[1753658322050,2.13658,3849.4,3849.3,3.2078]
[1753658322349,3.17888,3849.4,3849.3,3.2078]
[1753658323344,1.29835,3849.8,3849.1,21.219]
[1753658323345,0.51941,3849.2,3849.1,21.219]
[1753658323542,1.29303,3849.0,3848.9,1.7687]
[1753658323744,1.29303,3849.0,3848.9,22.9877]
[1753658324242,0.7736,3849.0,3848.9,23.50715]
[1753658324438,0.7736,3849.6,3849.1,1.7687]
[1753658324644,1.29832,3849.8,3849.3,3.2078]
[1753658324838,0.51937,3849.5,3849.4,1.7687]
[1753658325051,1.29297,3849.5,3849.4,1.7687]
[1753658325345,0.7736,3849.5,3849.4,2.28808]
[1753658325538,1.29297,3849.5,3849.4,1.7687]
[1753658325942,2.13657,3849.5,3849.4,1.7687]
[1753658326241,0.51935,3849.7,3849.6,0.51934]
[1753658326552,0.51933,3849.8,3849.7,0.51933]
[1753658326848,0.7736,3849.8,3849.7,2.28803]
[1753658327243,0.7736,3849.8,3849.7,2.89903]
[1753658327447,0.51929,3850.1,3850.0,0.51929]
[1753658327644,0.7736,3850.1,3850.0,1.7687]
[1753658327844,1.6172,3850.1,3850.0,1.7687]
[1753658328044,3.17878,3850.1,3850.0,1.7687]
[1753658329151,3.17878,3850.1,3850.0,1.0618]
[1753658329747,0.51932,3849.8,3849.7,4.9765]
[1753658329949,2.6595,3850.0,3849.3,3.2078]
[1753658330150,0.51937,3849.5,3849.4,21.22]
[1753658330346,3.17887,3849.5,3849.4,21.22]
[1753658331346,2.13657,3849.5,3849.4,22.2818]
[1753658331553,0.51937,3849.5,3849.4,23.5997]
[1753658331752,0.51936,3849.6,3849.5,2.89905]
[1753658331948,3.17886,3849.6,3849.4,21.22]
[1753658332154,3.17887,3849.5,3849.4,21.22]
[1753658333348,3.17888,3849.4,3849.3,3.2078]
[1753658333652,3.17888,3849.4,3849.3,24.4278]
[1753658334052,3.17888,3849.4,3849.3,3.2078]
[1753658334252,3.17888,3849.4,3849.3,24.4278]
[1753658337757,3.17888,3849.4,3849.3,25.4896]
[1753658337958,5.01628,3849.4,3849.3,26.2372]
[1753658340169,5.01628,3849.4,3849.3,28.0242]
[1753658340369,0.8297,3849.7,3849.6,2.27654]
[1753658340565,0.7903,3850.1,3849.6,25.3677]
[1753658340772,5.04378,3850.1,3850.0,3.5182]
[1753658341665,5.04378,3850.1,3849.7,3.2078]
[1753658341666,5.82275,3850.1,3849.7,3.2078]
[1753658341970,5.04391,3849.2,3849.1,6.726]
[1753658342168,5.04391,3849.2,3849.1,28.46442]
[1753658342370,3.94661,3849.2,3849.1,28.46442]
[1753658342672,5.04391,3849.2,3849.1,27.945]
[1753658343970,5.04391,3849.2,3849.1,3.2078]
[1753658344269,5.04396,3848.8,3848.7,21.218]
[1753658344477,1.9077,3848.5,3848.4,39.68551]
[1753658344671,2.4541,3848.5,3848.4,60.384]
[1753658344975,2.4541,3848.5,3848.4,60.90351]
[1753658345477,1.29865,3848.9,3848.8,4.03764]
[1753658345478,0.8297,3848.9,3848.8,4.03764]
[1753658345677,0.8297,3848.9,3848.8,29.09294]
[1753658346073,1.8876,3849.3,3849.1,0.51941]
[1753658346273,0.8297,3850.0,3849.3,1.7572]
[1753658346476,1.8072,3848.9,3848.8,3.2078]
[1753658346780,5.04395,3848.9,3848.8,21.218]
[1753658346979,3.2078,3849.1,3848.3,3.9034]
[1753658346980,5.04401,3848.4,3848.3,3.9034]
[1753658347282,5.04401,3848.4,3848.3,3.2078]
[1753658347476,2.32678,3847.9,3847.5,1.0356]
[1753658347678,5.04408,3847.9,3847.4,21.218]
[1753658348475,5.04408,3847.9,3847.8,0.88791519]
[1753658348676,0.8297,3847.9,3847.8,4.85960519]
[1753658348981,1.34928,3847.9,3847.8,3.10240519]
[1753658349582,0.8297,3847.9,3847.8,3.10240519]
[1753658350071,1.34928,3847.9,3847.8,3.10240519]
[1753658350276,0.8297,3847.9,3847.8,2.47290519]
[1753658350781,0.8297,3847.9,3847.8,23.69090519]
[1753658351876,0.8297,3847.9,3847.8,23.17131519]
[1753658351877,3.23688,3847.9,3847.8,23.17131519]
[1753658352281,2.7173,3847.9,3847.8,23.69090519]
[1753658352775,2.7173,3847.9,3847.8,24.38650519]
[1753658352976,5.04408,3847.9,3847.8,25.44810519]
[1753658353181,4.5245,3847.9,3847.8,25.44810519]
[1753658353480,1.9346,3847.9,3847.8,25.44810519]
[1753658353875,1.9346,3847.9,3847.8,4.23010519]
[1753658354180,1.9346,3847.9,3847.8,25.45010519]
[1753658354377,2.45418,3847.9,3847.8,25.45010519]
[1753658354683,5.04408,3847.9,3847.8,0.19231519]
[1753658358088,5.04408,3847.9,3847.8,5.19e-06]
[1753658358287,5.04415,3847.4,3847.3,3.2078]
[1753658358686,2.32692,3846.9,3846.8,22.43633]
[1753658358889,5.04422,3846.9,3846.8,23.47193]
[1753658359086,5.04422,3846.9,3846.8,24.73403]
[1753658359287,5.04422,3846.9,3846.8,22.9522]
[1753658359490,5.04422,3846.9,3846.8,21.9166]
[1753658360090,5.04422,3846.9,3846.8,23.4889]
[1753658360293,5.04422,3846.9,3846.8,24.7392]
[1753658361091,5.04422,3846.9,3846.8,23.4889]
[1753658361291,5.04422,3846.9,3846.8,21.221]
[1753658361787,0.51973,3846.8,3846.7,3.72754]
[1753658361992,5.04423,3846.8,3846.7,3.2078]
[1753658362191,5.04423,3846.8,3846.7,3.9034]
[1753658362393,5.04423,3846.8,3846.7,4.939]
[1753658363481,5.04423,3846.8,3846.7,1.7312]
[1753658364293,1.34943,3846.8,3846.7,4.66744]
[1753658364486,3.9981,3847.6,3847.0,3.5182]
[1753658364690,5.04419,3847.1,3847.0,3.5182]
[1753658364991,5.04419,3847.1,3847.0,24.0148]
[1753658365388,5.04419,3847.1,3847.0,24.7402]
[1753658365988,5.04423,3846.8,3846.7,3.2078]
[1753658366689,0.51973,3846.8,3846.7,6.726]
[1753658366997,3.18681,3847.2,3846.7,6.726]
[1753658366998,0.51969,3847.2,3847.1,4.66737]
[1753658367288,0.51964,3847.5,3847.4,2.27685]
[1753658367588,0.51964,3847.5,3847.4,25.88935]
[1753658369299,5.02774,3847.5,3847.4,24.7402]
[1753658369890,5.02774,3847.5,3847.4,2.7928]
[1753658370092,0.51968,3847.2,3847.1,3.2078]
[1753658370395,3.23098,3847.2,3847.1,24.4298]
[1753658371391,0.51973,3846.8,3846.7,4.3189]
[1753658371597,3.23103,3846.8,3846.7,5.0167]
[1753658371798,3.23103,3846.8,3846.7,26.2377]
[1753658372390,2.10443,3846.8,3846.7,26.2377]
[1753658372796,2.10443,3846.8,3846.7,5.0167]
[1753658373097,5.01613,3846.8,3846.7,27.9922]
[1753658373797,5.01613,3846.8,3846.7,25.1089]
[1753658374098,5.01613,3846.8,3846.7,24.4298]
[1753658374287,5.01613,3846.8,3846.7,3.2078]
[1753658374892,0.51978,3846.4,3846.3,6.2249]
[1753658375091,5.01618,3846.4,3846.3,3.2078]
[1753658375293,2.3049,3846.3,3846.2,0.01819955]
[1753658375596,5.0162,3846.3,3846.2,0.01819955]
[1753658376287,10.0162,3846.3,3846.2,9.55e-06]
[1753658376495,5.01625,3845.9,3845.8,0.1924152]
[1753658376795,6.29576958,3845.9,3845.8,0.1924152]
[1753658377591,5.01625,3845.9,3845.8,1.9826152]
[1753658377898,1.30115,3845.9,3845.8,4.8765852]
[1753658378100,1.30115,3845.9,3845.8,4.3567152]
[1753658378299,1.30115,3845.9,3845.8,4.8765752]
[1753658378502,0.7813,3845.9,3845.8,4.8765752]
[1753658378796,5.01621,3846.3,3846.2,3.5529]
[1753658378995,5.01621,3846.3,3846.2,6.7607]
[1753658379699,3.08621,3846.3,3846.2,7.28051]
[1753658379894,1.3161,3846.3,3846.2,7.28051]
[1753658380090,0.8034,3846.9,3846.3,2.3917]
[1753658380290,1.49777672,3846.8,3846.7,4.07264]
[1753658380495,2.39553,3846.8,3846.7,3.5529]
[1753658380701,3.88953,3846.8,3846.7,4.07264]
[1753658380900,5.01613,3846.8,3846.7,3.5529]
[1753658382294,5.01613,3846.8,3846.7,4.07264]
[1753658382495,5.01613,3846.8,3846.7,3.5529]
[1753658382997,1.8979,3847.2,3847.1,3.5529]
[1753658383192,4.23469,3847.8,3847.7,3.5529]
[1753658383394,2.30474,3847.5,3847.4,1.2082]
[1753658383700,5.01608,3847.2,3847.1,6.73509]
[1753658383996,3.88948,3847.2,3847.1,6.7607]
[1753658384196,5.01608,3847.2,3847.1,6.7607]
[1753658384696,5.01608,3847.2,3847.1,0.6791]
[1753658384902,5.01608,3847.2,3846.8,21.222]
[1753658384903,3.88952,3846.9,3846.8,24.7749]
[1753658385502,5.01612,3846.9,3846.8,3.5529]
[1753658385799,5.01612,3846.9,3846.8,1.7902]
[1753658386503,5.01613,3846.8,3846.7,3.2078]
[1753658388499,5.01613,3846.8,3846.7,3.8869]
[1753658388701,5.01613,3846.8,3846.7,3.2078]
[1753658389099,2.30488,3846.4,3846.3,1.7902]
[1753658389396,5.01618,3846.4,3846.3,1.7902]
[1753658390598,3.08618,3846.4,3846.3,2.8646]
[1753658390797,0.51978,3846.5,3846.3,4.1452]
[1753658390996,1.30098,3847.2,3847.1,4.1452]
[1753658391206,0.51968,3847.2,3847.1,7.353]
[1753658391402,0.51967,3847.4,3847.3,2.27315]
[1753658391701,0.51964,3847.5,3847.4,0.51964]
[1753658391906,0.51962,3847.7,3847.6,0.51961]
[1753658392106,0.51962,3847.7,3847.6,6.11911]
[1753658393007,0.51962,3847.7,3847.6,5.5995]
[1753658393209,1.23710266,3847.7,3847.6,5.5995]
[1753658393505,1.23714138,3847.7,3847.6,5.5995]
[1753658393707,2.01844138,3847.7,3847.6,5.0072]
[1753658394111,3.94844138,3847.7,3847.6,5.0072]
[1753658394610,3.23092,3847.7,3847.6,5.0072]
[1753658394803,0.51966,3847.3,3847.2,23.0174]
[1753658394998,1.30096,3847.3,3847.2,23.0174]
[1753658395204,0.51965,3847.4,3847.2,21.218]
[1753658395412,1.30092,3847.7,3847.6,0.51962]
[1753658395609,0.51962,3847.7,3847.6,6.11912]
[1753658395808,0.51962,3847.7,3847.6,5.5995]
[1753658396206,3.23092,3847.7,3847.6,3.2078]
[1753658396411,3.23095,3847.4,3847.3,1.1111]
[1753658396798,2.10435,3847.4,3847.3,1.7994]
[1753658397201,1.30095,3847.4,3847.3,2.91136]
[1753658397407,0.51962,3847.7,3847.6,2.3917]
[1753658398309,0.51962,3847.7,3847.6,2.91132]
[1753658398905,1.33482,3847.7,3847.6,2.3917]
[1753658399110,2.10092,3847.7,3847.6,1.7994]
[1753658399410,3.11252,3847.7,3847.6,1.7994]
[1753658400213,1.33482,3847.7,3847.6,2.31902]
[1753658400512,1.85501,3847.7,3847.6,3.5513]
[1753658400807,3.14741,3847.7,3847.6,4.07092]
[1753658401204,2.38131,3847.7,3847.6,4.07092]
[1753658401408,1.85501,3847.7,3847.6,4.64392]
[1753658401807,1.33479,3848.0,3847.9,2.94037]
[1753658402009,1.33479,3848.0,3847.9,7.73767]
[1753658402209,0.51953,3848.3,3848.2,0.51953]
[1753658402412,0.51953,3848.3,3848.2,4.0103]
[1753658402607,1.33473,3848.3,3848.2,4.0103]
[1753658402814,4.87903,3848.3,3848.2,1.7149]
[1753658403415,4.06387,3848.0,3847.9,7.16467]
[1753658403614,4.87907,3848.0,3847.9,7.16467]
[1753658403914,1.33477,3848.0,3847.9,7.73767]
[1753658404115,0.51957,3848.0,3847.9,7.73767]
[1753658406012,1.7777,3848.7,3848.2,2.7684]
[1753658406206,0.51953,3848.4,3848.3,3.95681]
[1753658406413,1.33473,3848.4,3848.3,4.52981]
[1753658406608,1.8617,3848.8,3848.7,2.27137]
[1753658406813,2.38118,3848.8,3848.7,6.6451]
[1753658407118,3.86738,3848.8,3848.7,6.6451]
[1753658407316,4.87901,3848.4,3848.3,26.1317]
[1753658407718,4.87901,3848.4,3848.3,27.8541]
[1753658407912,4.87901,3848.4,3848.3,28.37363]
[1753658408120,4.87901,3848.4,3848.3,27.8541]
[1753658408319,3.86741,3848.4,3848.3,27.8541]
[1753658408519,3.10131,3848.4,3848.3,27.8541]
[1753658408912,3.10131,3848.4,3848.3,27.319]
[1753658408913,4.87901,3848.4,3848.3,27.319]
[1753658409116,4.87901,3848.4,3848.3,26.1317]
[1753658409316,4.87901,3848.4,3848.3,4.9227]
[1753658409516,4.87901,3848.4,3848.3,3.2078]
[1753658409922,4.87901,3848.4,3848.3,4.9227]
[1753658410113,4.87901,3848.4,3848.3,5.4411]
[1753658410312,4.87901,3848.4,3848.3,6.6451]
[1753658410723,4.87901,3848.4,3848.3,7.16463]
[1753658410921,4.87901,3848.4,3848.3,6.6451]
[1753658411212,4.87901,3848.4,3848.3,5.4411]
[1753658411418,4.87901,3848.4,3848.3,4.9227]
[1753658412121,4.87901,3848.4,3848.3,3.9062]
[1753658413422,4.87901,3848.4,3848.3,6.6451]
[1753658413722,4.87901,3848.4,3848.3,7.16463]
[1753658413723,3.10131,3848.4,3848.3,7.16463]
[1753658413923,0.8152,3848.7,3848.6,3.25837]
[1753658414122,0.8152,3848.7,3848.6,4.52977]
[1753658414323,1.33468,3848.7,3848.6,25.2123]
[1753658414518,3.14728,3848.7,3848.6,24.6393]
[1753658414719,3.14728,3848.7,3848.3,3.2078]
[1753658414720,0.51951,3848.4,3848.3,3.2078]
[1753658414920,4.87901,3848.4,3848.3,26.1247]
[1753658415220,4.87901,3848.4,3848.3,0.6984]
[1753658415418,4.87901,3848.4,3848.3,21.202]
[1753658415615,4.87901,3848.4,3847.9,6.11]
[1753658415616,4.87907,3848.0,3847.9,6.11]
[1753658415822,4.87907,3848.0,3847.9,27.83058]
[1753658416028,3.86747,3848.0,3847.9,28.36568]
[1753658416526,3.86747,3848.0,3847.9,27.8461]
[1753658416728,4.87907,3848.0,3847.9,27.8461]
[1753658417425,4.87907,3848.0,3847.9,28.36568]
[1753658417924,4.87907,3848.0,3847.9,27.8461]
[1753658418627,4.87907,3848.0,3847.9,6.6451]
[1753658418828,4.87907,3848.0,3847.9,28.36468]
[1753658419732,4.87907,3848.0,3847.9,3.9062]
[1753658419922,4.87907,3848.0,3847.9,24.4068]
[1753658420115,4.87907,3848.0,3847.9,3.2078]
[1753658420322,4.87915,3847.4,3847.3,3.2078]
[1753658420625,4.87915,3847.4,3847.3,25.1052]
[1753658421122,4.87915,3847.4,3847.3,26.1217]
[1753658421325,2.5929,3847.8,3847.4,1.7519]
[1753658421522,1.33481,3847.7,3847.6,4.52992]
[1753658421827,1.85501,3847.7,3847.6,4.0103]
[1753658422024,1.85501,3847.7,3847.6,25.72792]
[1753658422220,1.8617,3848.1,3848.0,0.51957]
[1753658422525,1.0397,3848.5,3848.4,3.4373]
[1753658422726,0.5195,3848.5,3848.4,25.2083]
[1753658423023,0.8152,3848.8,3848.7,4.52977]
[1753658423229,3.2078,3849.2,3848.7,4.52977]
[1753658423230,4.87891,3849.2,3849.1,3.4373]
[1753658423430,5.83982421,3849.2,3849.1,3.4373]
[1753658425018,2.28605,3848.9,3848.8,5.6286]
[1753658425224,4.87895,3848.9,3848.8,3.9062]
[1753658425823,4.87895,3848.9,3848.8,4.9227]
[1753658426022,4.87895,3848.9,3848.8,6.6451]
[1753658426221,3.10125,3848.9,3848.8,7.16456]
[1753658426424,3.10125,3848.9,3848.8,28.35956]
[1753658426627,2.38115,3848.9,3848.8,27.8401]
[1753658427727,2.38115,3848.9,3848.8,28.35956]
[1753658428133,3.10125,3848.9,3848.8,27.8401]
[1753658428326,4.86985,3848.9,3848.8,27.8401]
[1753658428931,4.86985,3848.9,3848.8,28.35956]
[1753658429329,4.86985,3848.9,3848.8,27.8401]
[1753658430131,4.86985,3848.9,3848.8,28.35956]
[1753658430331,4.86985,3848.9,3848.8,27.8401]
[1753658430836,4.86985,3848.9,3848.8,28.35956]
[1753658431637,1.5942,3849.3,3849.1,0.51941]
[1753658431940,4.85869,3849.3,3849.2,7.20591]
[1753658432140,4.85869,3849.3,3849.2,24.3978]
[1753658432529,2.5707,3849.3,3849.2,28.39591]
[1753658432729,1.8704,3849.3,3849.2,28.94441]
[1753658433036,0.018,3849.3,3849.2,28.94441]
[1753658433334,0.2,3849.9,3849.8,4.54652]
[1753658433640,0.2,3849.9,3849.8,25.73552]
[1753658434239,1.5382,3849.9,3849.8,25.2162]
[1753658434433,3.27201,3849.9,3849.8,25.18702]
[1753658434939,1.5382,3849.9,3849.8,25.73002]
[1753658435135,1.0017,3849.9,3849.8,25.73002]
[1753658435338,0.51925,3850.4,3850.3,1.24224]
[1753658435543,0.51925,3850.4,3850.3,25.97174]
[1753658435935,0.51923,3850.6,3850.5,1.77172]
[1753658436141,0.51918,3850.9,3850.8,4.2665]
[1753658436439,0.51918,3850.9,3850.8,28.6593]
[1753658436943,0.51918,3850.9,3850.8,29.17849]
[1753658437143,1.8252,3851.2,3851.1,4.2665]
[1753658437343,0.5365,3851.5,3851.4,4.78561]
[1753658437542,0.71905,3851.9,3851.7,4.78556]
[1753658437740,0.71905,3851.9,3851.8,28.6593]
[1753658437937,0.71905,3851.9,3851.8,29.17836]
[1753658437938,0.2,3851.9,3851.8,29.17836]
[1753658438846,0.71904,3851.9,3851.8,29.17836]
[1753658439742,0.71904,3851.9,3851.8,29.17835]
[1753658439943,0.71904,3851.9,3851.8,28.6593]
[1753658441348,1.76974,3851.9,3851.8,28.6593]
[1753658441651,2.57144,3851.9,3851.8,28.6593]
[1753658442145,4.04624,3851.9,3851.8,28.6593]
[1753658442340,4.04624,3851.9,3851.8,29.17836]
[1753658442545,0.2,3851.9,3851.8,29.17836]
[1753658442746,0.71904,3851.9,3851.8,29.17836]
[1753658442948,0.71904,3851.9,3851.8,28.6593]
[1753658443147,3.27174,3851.9,3851.8,28.6593]
[1753658443446,5.04034,3851.9,3851.8,6.681]
[1753658443644,5.04034,3851.9,3851.8,3.2078]
[1753658443844,5.04034,3851.9,3851.8,24.3788]
[1753658444039,0.51911,3851.4,3851.3,5.0697]
[1753658444244,4.84041,3851.4,3851.3,26.2397]
[1753658444446,4.84041,3851.4,3851.3,27.3215]
[1753658444647,4.84041,3851.4,3851.3,27.2121]
[1753658444947,4.84041,3851.4,3851.3,25.6008]
[1753658445153,4.84041,3851.4,3851.3,3.2078]
[1753658445448,4.84041,3851.4,3851.3,24.3778]
[1753658448950,4.84041,3851.4,3851.3,24.8778]
[1753658449547,3.84627,3851.7,3851.6,4.2665]
[1753658449746,4.84037,3851.7,3851.6,22.9185]
[1753658449946,4.84037,3851.7,3851.6,21.166]
[1753658452151,2.27011,3851.4,3851.3,4.9603]
[1753658452455,4.84041,3851.4,3851.3,27.845]
[1753658452650,3.84631,3851.4,3851.3,29.15742]
[1753658452856,1.56981,3851.5,3851.4,2.27159]
[1753658453056,3.14601,3851.5,3851.4,4.2665]
[1753658453354,3.84631,3851.5,3851.4,4.2665]
[1753658453954,4.84041,3851.5,3851.4,4.2665]
[1753658455646,4.84041,3851.5,3851.4,4.78561]
[1753658457058,3.07181,3851.5,3851.4,4.78561]
[1753658457352,3.0718,3851.5,3851.4,4.78561]
[1753658457554,1.7686,3851.8,3851.6,2.27157]
[1753658457555,1.8524,3851.7,3851.6,2.27157]
[1753658457751,2.37149,3851.7,3851.6,23.43057]
[1753658458158,4.81889,3851.7,3851.6,25.83467]
[1753658461358,1.707,3851.7,3851.6,25.83467]
[1753658461559,1.0507,3851.7,3851.6,25.83467]
[1753658461761,3.22275,3851.9,3851.8,4.1286]
[1753658461953,3.22275,3851.9,3851.8,28.4924]
[1753658462355,0.2,3851.9,3851.8,29.01146]
[1753658466152,5.20996989,3851.9,3851.8,6.1728]
[1753658466352,5.72900989,3851.9,3851.8,3.2078]
[1753658466664,5.72900989,3851.9,3851.8,24.3588]
[1753658467060,5.72900989,3851.9,3851.8,24.8949]
[1753658467264,5.72900989,3851.9,3851.8,27.2112]
[1753658467464,5.72900989,3851.9,3851.8,29.00646]
[1753658467663,5.72900989,3851.9,3851.8,28.4874]
[1753658468067,5.72900989,3851.9,3851.8,29.00646]
[1753658468258,5.01384,3851.9,3851.8,29.00646]
[1753658469062,0.2,3851.9,3851.8,29.00646]
[1753658469661,0.71904,3851.9,3851.8,29.00646]
[1753658469858,1.2476,3851.9,3851.8,29.00646]
[1753658470365,2.7037,3851.9,3851.8,29.00646]
[1753658470667,3.443,3851.9,3851.8,29.00646]
[1753658471968,5.01384,3851.9,3851.8,3.2078]
[1753658472464,5.72903016,3851.9,3851.8,2.1248]
[1753658472664,3.10586,3851.0,3850.9,0.26433981]
[1753658472864,0.5238,3850.1,3850.0,3.2078]
[1753658473060,3.10598,3850.1,3850.0,24.3528]
[1753658473263,3.10598,3850.1,3850.0,26.5785]
[1753658473465,3.10598,3850.1,3850.0,27.7245]
[1753658473664,3.10598,3850.1,3850.0,27.2052]
[1753658473864,3.10598,3850.1,3850.0,28.2614]
[1753658474068,1.0476,3850.5,3850.4,4.64783]
[1753658474266,2.36659,3850.8,3850.7,2.7626]
[1753658474463,1.8474,3850.8,3850.7,25.7938]
[1753658474764,1.5391,3851.8,3851.0,2.4041]
[1753658475072,0.71556887,3851.7,3851.6,7.85548]
[1753658475370,4.05772481,3851.7,3851.6,27.7421]
[1753658475570,3.82133887,3851.7,3851.6,27.63448]
[1753658476267,0.71556887,3851.7,3851.6,29.00048]
[1753658476968,0.2,3851.9,3851.8,4.64766]
[1753658477168,0.018,3852.3,3852.2,4.6476]
[1753658477368,0.018,3852.3,3852.2,28.9984]
[1753658478274,3.10559,3853.1,3853.0,3.3893]
[1753658478473,4.49559,3853.1,3853.0,21.7945]
[1753658478870,4.49559,3853.1,3853.0,22.8326]
[1753658479571,2.1225398,3853.5,3853.0,25.2716]
[1753658479771,1.56643,3853.5,3853.4,2.24334]
[1753658479972,1.56643,3853.5,3853.4,25.78944]
[1753658480170,1.56643,3853.5,3853.4,25.2706]
[1753658480370,4.49553,3853.5,3853.4,21.7935]
[1753658480570,4.49553,3853.5,3853.4,21.142]
[1753658481071,3.4362398,3853.9,3853.8,1.7245]
[1753658481271,2.0474,3853.9,3853.8,25.78739]
[1753658482076,0.2,3853.9,3853.8,28.99519]
[1753658482266,4.69547,3853.9,3853.8,23.3657]
[1753658482873,3.51537,3853.9,3853.8,22.7142]
[1753658483071,2.99157,3853.9,3853.8,22.1781]
[1753658483277,2.99157,3853.9,3853.8,22.1741]
[1753658483977,2.25787,3853.9,3853.8,23.5401]
[1753658484176,2.25787,3853.9,3853.8,27.26669]
[1753658484377,0.2,3853.9,3853.8,27.26669]
[1753658484578,0.2,3853.9,3853.8,24.05889]
[1753658485077,0.71877,3853.9,3853.8,24.05889]
[1753658485278,0.71877,3853.9,3853.8,23.5401]
[1753658485479,0.71877,3853.9,3853.8,28.99119]
[1753658485675,0.2,3853.9,3853.8,28.4724]
[1753658485980,0.71877,3853.9,3853.8,28.4724]
[1753658486479,2.56617,3853.9,3853.8,28.4724]
[1753658486679,1.29672,3854.6,3854.3,1.0381]
[1753658486979,1.29672,3854.6,3853.9,1.9269]
[1753658486980,2.5867,3854.0,3853.9,1.9269]
[1753658487179,3.9767,3854.0,3853.9,22.3196]
[1753658487376,4.49546,3854.0,3853.9,23.87647]
[1753658487573,2.22267,3853.9,3853.8,3.2078]
[1753658487878,4.49547,3853.9,3853.8,24.3398]
[1753658488080,4.49547,3853.9,3853.8,26.5387]
[1753658488274,4.49547,3853.9,3853.8,27.05749]
[1753658488475,4.49547,3853.9,3853.8,26.5387]
[1753658488682,4.49547,3853.9,3853.8,3.2078]
[1753658488875,4.49547,3853.9,3853.8,21.132]
[1753658489782,4.49547,3853.9,3853.8,22.1449]
[1753658489981,4.49547,3853.9,3853.8,22.839]
[1753658490280,3.76177,3853.9,3853.8,24.1843]
[1753658490880,4.51297,3853.9,3853.8,23.3735]
[1753658491181,4.51297,3853.9,3853.8,23.3604]
[1753658492479,4.54061,3853.6,3853.4,37.378]
[1753658492683,1.29696,3853.9,3853.0,3.2078]
[1753658492684,2.28058,3853.1,3853.0,3.2078]
[1753658492980,2.28061,3852.9,3852.8,22.1419]
[1753658493186,4.54071,3852.9,3852.8,21.129]
[1753658493883,3.78951,3852.9,3852.8,24.1813]
[1753658494278,4.54071,3852.9,3852.8,22.836]
[1753658494482,4.54071,3852.9,3852.8,21.129]
[1753658494884,4.54073,3852.7,3852.6,3.2078]
[1753658495184,4.54073,3852.7,3852.6,4.2207]
[1753658496085,4.54073,3852.7,3852.6,3.2078]
[1753658498176,0.51895,3852.6,3852.5,21.128]
[1753658498483,4.54075,3852.6,3852.5,21.128]
[1753658498780,0.519,3852.2,3852.1,2.2284]
[1753658498987,4.5408,3852.2,3852.1,23.3574]
[1753658499683,0.51903,3852.0,3851.9,21.129]
[1753658499885,2.28073,3852.0,3851.9,22.3445]
[1753658500080,3.77053,3852.0,3851.9,23.3574]
[1753658500278,4.54083,3852.0,3851.9,23.3574]
[1753658501185,4.54083,3852.0,3851.9,22.836]
[1753658501690,4.54083,3852.0,3851.8,0.19211548]
[1753658501691,2.28074,3851.9,3851.8,0.19211548]
[1753658501889,4.54084,3851.9,3851.8,0.19211548]
[1753658502083,4.54084,3851.9,3851.8,2.43361548]
[1753658502288,3.78964,3851.9,3851.8,3.26531548]
[1753658503085,4.54084,3851.9,3851.8,2.42051548]
[1753658503287,4.54084,3851.9,3851.8,0.88621548]
[1753658503489,4.54084,3851.9,3851.8,0.19211548]
[1753658504391,4.54084,3851.9,3851.8,1.89911548]
[1753658504691,4.54084,3851.9,3851.8,2.42051548]